[Event "*** Titled Tuesday Blitz"]
[Site "Chess.com"]
[Date "2019.04.02"]
[Round "1"]
[White "lolo9292"]
[Black "Alex_Molchanov"]
[Result "1-0"]
[WhiteElo "2296"]
[BlackElo "2539"]
[TimeControl "180+2"]
[EndTime "14:06:24 PDT"]
[Termination "lolo9292 won by checkmate"]

1. Nf3 {[%clk 0:03:01.9]} 1... Nf6 {[%clk 0:02:59]} 2. c4 {[%clk 0:03:01.3]}
2... e6 {[%clk 0:02:59]} 3. g3 {[%clk 0:02:57.5]} 3... d5 {[%clk 0:02:59.7]} 4.
Bg2 {[%clk 0:02:51.3]} 4... dxc4 {[%clk 0:03:00.2]} 5. O-O {[%clk 0:02:52.4]}
5... c5 {[%clk 0:02:30.4]} 6. Na3 {[%clk 0:02:52.1]} 6... Nc6 {[%clk 0:02:29.1]}
7. Nxc4 {[%clk 0:02:53.1]} 7... Be7 {[%clk 0:02:30.3]} 8. b3 {[%clk 0:02:54.5]}
8... O-O {[%clk 0:02:30.1]} 9. Bb2 {[%clk 0:02:56]} 9... Ne8 {[%clk 0:02:25.4]}
10. Rc1 {[%clk 0:02:52.2]} 10... Bf6 {[%clk 0:02:25.1]} 11. Ba3 {[%clk
0:02:53.4]} 11... Be7 {[%clk 0:02:16]} 12. Qc2 {[%clk 0:02:48.3]} 12... Rb8
{[%clk 0:02:14.1]} 13. e3 {[%clk 0:02:43.8]} 13... b6 {[%clk 0:02:09.4]} 14.
Rfd1 {[%clk 0:02:42]} 14... Nc7 {[%clk 0:01:35.7]} 15. d4 {[%clk 0:02:40.4]}
15... cxd4 {[%clk 0:01:36.1]} 16. Nxd4 {[%clk 0:02:42.3]} 16... Nxd4 {[%clk
0:01:35.8]} 17. Rxd4 {[%clk 0:02:44.2]} 17... Qe8 {[%clk 0:01:36.7]} 18. Nd6
{[%clk 0:02:43.7]} 18... Nb5 {[%clk 0:01:07.7]} 19. Nxe8 {[%clk 0:02:42.5]}
19... Nxd4 {[%clk 0:01:06.1]} 20. exd4 {[%clk 0:02:39.1]} 20... Bxa3 {[%clk
0:01:05.3]} 21. Nc7 {[%clk 0:02:32.9]} 21... Bxc1 {[%clk 0:01:02.1]} 22. Qxc1
{[%clk 0:02:34.8]} 22... Bb7 {[%clk 0:00:57.7]} 23. d5 {[%clk 0:02:33.6]} 23...
exd5 {[%clk 0:00:56]} 24. Nxd5 {[%clk 0:02:35.1]} 24... Kh8 {[%clk 0:00:57.4]}
25. h4 {[%clk 0:02:30.7]} 25... h6 {[%clk 0:00:53.7]} 26. Qf4 {[%clk 0:02:24.3]}
26... Rbd8 {[%clk 0:00:50.5]} 27. Ne7 {[%clk 0:02:20.4]} 27... Bxg2 {[%clk
0:00:43.5]} 28. Kxg2 {[%clk 0:02:22.3]} 28... Rd7 {[%clk 0:00:43.3]} 29. Nf5
{[%clk 0:02:19.9]} 29... Re8 {[%clk 0:00:43.2]} 30. Qg4 {[%clk 0:02:18.5]} 30...
Rg8 {[%clk 0:00:34.9]} 31. h5 {[%clk 0:01:53.8]} 31... Rc7 {[%clk 0:00:27.1]}
32. b4 {[%clk 0:01:51.8]} 32... Kh7 {[%clk 0:00:21.3]} 33. a4 {[%clk 0:01:52.5]}
33... Re8 {[%clk 0:00:19.8]} 34. Qxg7# {[%clk 0:01:52.8]} 1-0

[Event "*** Titled Tuesday Blitz"]
[Site "Chess.com"]
[Date "2019.04.02"]
[Round "1"]
[White "santosalberto1987"]
[Black "ElGasanov"]
[Result "1-0"]
[WhiteElo "2408"]
[BlackElo "2682"]
[TimeControl "180+2"]
[EndTime "14:06:32 PDT"]
[Termination "santosalberto1987 won by resignation"]

1. e4 {[%clk 0:03:00.4]} 1... c5 {[%clk 0:02:57.5]} 2. Nf3 {[%clk 0:03:01.2]}
2... Nc6 {[%clk 0:02:57.4]} 3. d4 {[%clk 0:03:01.2]} 3... cxd4 {[%clk
0:02:58.2]} 4. Nxd4 {[%clk 0:03:03.1]} 4... Nf6 {[%clk 0:02:59.8]} 5. Nc3 {[%clk
0:03:03.6]} 5... g6 {[%clk 0:03:01.4]} 6. Be3 {[%clk 0:03:04]} 6... Bg7 {[%clk
0:03:01.7]} 7. Bc4 {[%clk 0:03:05.3]} 7... O-O {[%clk 0:03:02.6]} 8. Bb3 {[%clk
0:03:06.1]} 8... Re8 {[%clk 0:03:04]} 9. O-O {[%clk 0:03:04.8]} 9... d6 {[%clk
0:03:03.2]} 10. h3 {[%clk 0:03:05.3]} 10... Na5 {[%clk 0:03:04.6]} 11. Qd2
{[%clk 0:03:00]} 11... b6 {[%clk 0:03:03.7]} 12. Bh6 {[%clk 0:02:57.9]} 12...
Bb7 {[%clk 0:03:03.7]} 13. Bxg7 {[%clk 0:02:58.2]} 13... Kxg7 {[%clk 0:03:05.6]}
14. Rfe1 {[%clk 0:02:58]} 14... Rc8 {[%clk 0:03:02.6]} 15. Rad1 {[%clk
0:02:58.1]} 15... Nc4 {[%clk 0:03:01.3]} 16. Bxc4 {[%clk 0:02:59]} 16... Rxc4
{[%clk 0:03:02]} 17. e5 {[%clk 0:02:57.4]} 17... Nh5 {[%clk 0:02:50.3]} 18. g4
{[%clk 0:02:48.8]} 18... dxe5 {[%clk 0:02:47.5]} 19. Ne6+ {[%clk 0:02:45.2]}
19... fxe6 {[%clk 0:02:47.8]} 20. Qxd8 {[%clk 0:02:47.1]} 20... Rxd8 {[%clk
0:02:49.2]} 21. Rxd8 {[%clk 0:02:48.6]} 21... Nf4 {[%clk 0:02:50.6]} 22. Kh2
{[%clk 0:02:43.5]} 22... Kf6 {[%clk 0:02:35.7]} 23. Rd7 {[%clk 0:02:41.5]} 23...
Bg2 {[%clk 0:02:32.3]} 24. Kg3 {[%clk 0:02:28.3]} 24... h5 {[%clk 0:02:30.8]}
25. f3 {[%clk 0:02:28.6]} 25... h4+ {[%clk 0:02:30.4]} 26. Kxh4 {[%clk
0:02:18.3]} 26... Bxf3 {[%clk 0:02:30.3]} 27. Kg3 {[%clk 0:02:18.4]} 27... Bd5
{[%clk 0:02:24.2]} 28. Rxa7 {[%clk 0:02:18.2]} 28... b5 {[%clk 0:02:18.5]} 29.
a3 {[%clk 0:02:15.6]} 29... b4 {[%clk 0:02:18.8]} 30. axb4 {[%clk 0:02:16.5]}
30... Rxb4 {[%clk 0:02:20.7]} 31. b3 {[%clk 0:02:15.6]} 31... g5 {[%clk
0:02:07.2]} 32. Ra4 {[%clk 0:02:15]} 32... Rb7 {[%clk 0:02:03.6]} 33. Ne4+
{[%clk 0:02:15.9]} 33... Kg6 {[%clk 0:02:04.6]} 34. Ra3 {[%clk 0:02:09.2]} 34...
Rb8 {[%clk 0:02:03.5]} 35. c4 {[%clk 0:02:09.9]} 35... Bxe4 {[%clk 0:02:00.2]}
36. Rxe4 {[%clk 0:02:10.7]} 36... Rh8 {[%clk 0:02:01.9]} 37. Kf2 {[%clk
0:01:43.9]} 37... Rxh3 {[%clk 0:02:00.7]} 38. c5 {[%clk 0:01:35.9]} 38... Rc3
{[%clk 0:01:58]} 39. Rc4 {[%clk 0:01:35]} 39... Rh3 {[%clk 0:01:47.9]} 40. c6
{[%clk 0:01:34.9]} 40... e4 {[%clk 0:01:44.5]} 41. Rxe4 {[%clk 0:01:31.3]} 41...
Rc3 {[%clk 0:01:44.8]} 42. Rc4 {[%clk 0:01:32]} 42... Rh3 {[%clk 0:01:41]} 43.
c7 {[%clk 0:01:31.6]} 43... Rh2+ {[%clk 0:01:40.3]} 44. Kg1 {[%clk 0:01:31.5]}
1-0

[Event "*** Titled Tuesday Blitz"]
[Site "Chess.com"]
[Date "2019.04.02"]
[Round "1"]
[White "maestroza"]
[Black "Guenplen"]
[Result "0-1"]
[WhiteElo "2487"]
[BlackElo "2900"]
[TimeControl "180+2"]
[EndTime "14:06:37 PDT"]
[Termination "Guenplen won on time"]

1. e4 {[%clk 0:02:54.9]} 1... c5 {[%clk 0:03:00.6]} 2. Nf3 {[%clk 0:02:55.3]}
2... e6 {[%clk 0:03:00.9]} 3. g3 {[%clk 0:02:55.8]} 3... Nc6 {[%clk 0:03:01.4]}
4. Bg2 {[%clk 0:02:56.8]} 4... Nf6 {[%clk 0:03:02.5]} 5. Qe2 {[%clk 0:02:58.3]}
5... d6 {[%clk 0:03:03.6]} 6. O-O {[%clk 0:02:59.8]} 6... Be7 {[%clk 0:03:04.8]}
7. c3 {[%clk 0:03:01.3]} 7... O-O {[%clk 0:03:04.8]} 8. d4 {[%clk 0:03:02.2]}
8... d5 {[%clk 0:03:06.1]} 9. e5 {[%clk 0:03:00.1]} 9... Nd7 {[%clk 0:03:06.7]}
10. Be3 {[%clk 0:02:45.9]} 10... b6 {[%clk 0:03:06.9]} 11. Rd1 {[%clk
0:02:19.8]} 11... a5 {[%clk 0:03:06.1]} 12. Na3 {[%clk 0:02:11.4]} 12... Ba6
{[%clk 0:03:04.6]} 13. Nb5 {[%clk 0:02:10.6]} 13... a4 {[%clk 0:03:00.3]} 14. b3
{[%clk 0:01:37.8]} 14... axb3 {[%clk 0:02:56.8]} 15. axb3 {[%clk 0:01:38.6]}
15... Na5 {[%clk 0:02:57.4]} 16. Nd2 {[%clk 0:01:34.8]} 16... cxd4 {[%clk
0:02:44.6]} 17. Bxd4 {[%clk 0:01:00]} 17... Bc5 {[%clk 0:02:44.5]} 18. Bf1
{[%clk 0:00:55.9]} 18... Nc6 {[%clk 0:02:36.5]} 19. Qe3 {[%clk 0:00:47.2]} 19...
Ncxe5 {[%clk 0:02:32.1]} 20. b4 {[%clk 0:00:22.9]} 20... Bxd4 {[%clk 0:02:29]}
21. Qxd4 {[%clk 0:00:14.7]} 21... Nc6 {[%clk 0:02:18.3]} 22. Qe3 {[%clk
0:00:11.9]} 22... Nf6 {[%clk 0:02:12.2]} 23. Rdc1 {[%clk 0:00:06.4]} 23... Ne7
{[%clk 0:02:07.5]} 24. Qe5 {[%clk 0:00:04.4]} 24... Ng6 {[%clk 0:02:01]} 25. Qd4
{[%clk 0:00:03.9]} 25... e5 {[%clk 0:02:01.9]} 26. Qe3 {[%clk 0:00:05.1]} 26...
Re8 {[%clk 0:01:57.1]} 27. Rd1 {[%clk 0:00:06.1]} 27... h6 {[%clk 0:01:52.6]}
28. h3 {[%clk 0:00:06.8]} 28... Qd7 {[%clk 0:01:49]} 29. Kh2 {[%clk 0:00:07.9]}
29... Bxb5 {[%clk 0:01:49.4]} 0-1

[Event "*** Titled Tuesday Blitz"]
[Site "Chess.com"]
[Date "2019.04.02"]
[Round "1"]
[White "SARGISMV"]
[Black "SaraciNderim"]
[Result "1-0"]
[WhiteElo "2438"]
[BlackElo "2733"]
[TimeControl "180+2"]
[EndTime "14:06:37 PDT"]
[Termination "SARGISMV won by resignation"]

1. d4 {[%clk 0:03:01]} 1... Nf6 {[%clk 0:02:57.2]} 2. c4 {[%clk 0:03:01.6]} 2...
g6 {[%clk 0:02:57.9]} 3. Nf3 {[%clk 0:03:02.2]} 3... Bg7 {[%clk 0:02:58.7]} 4.
Nc3 {[%clk 0:03:03.5]} 4... d5 {[%clk 0:02:59.7]} 5. cxd5 {[%clk 0:03:03.8]}
5... Nxd5 {[%clk 0:03:01.6]} 6. e4 {[%clk 0:03:05.2]} 6... Nxc3 {[%clk
0:02:53.9]} 7. bxc3 {[%clk 0:03:07.1]} 7... c5 {[%clk 0:02:55.4]} 8. Be3 {[%clk
0:03:07.5]} 8... O-O {[%clk 0:02:56.5]} 9. Rc1 {[%clk 0:03:06.5]} 9... Qa5
{[%clk 0:02:54.1]} 10. Qd2 {[%clk 0:03:07.4]} 10... Rd8 {[%clk 0:02:50.5]} 11.
d5 {[%clk 0:03:07.8]} 11... Bg4 {[%clk 0:02:48.4]} 12. c4 {[%clk 0:03:05.9]}
12... Qc7 {[%clk 0:02:30.4]} 13. Be2 {[%clk 0:03:01.6]} 13... Nd7 {[%clk
0:02:29.8]} 14. O-O {[%clk 0:02:45.6]} 14... Rac8 {[%clk 0:02:13.1]} 15. h3
{[%clk 0:02:38.1]} 15... Bxf3 {[%clk 0:02:13.2]} 16. Bxf3 {[%clk 0:02:40]} 16...
b5 {[%clk 0:01:51]} 17. cxb5 {[%clk 0:02:37.9]} 17... c4 {[%clk 0:01:51.9]} 18.
Bd4 {[%clk 0:02:28.5]} 18... Bxd4 {[%clk 0:01:16.2]} 19. Qxd4 {[%clk 0:02:30.4]}
19... Qc5 {[%clk 0:01:11.5]} 20. Qxc5 {[%clk 0:02:27.2]} 20... Rxc5 {[%clk
0:01:13.4]} 21. Rc3 {[%clk 0:02:17.4]} 21... Nb6 {[%clk 0:01:03.2]} 22. Rb1
{[%clk 0:02:12.1]} 22... e6 {[%clk 0:01:02.8]} 23. Rb4 {[%clk 0:02:08.3]} 23...
exd5 {[%clk 0:01:01.6]} 24. exd5 {[%clk 0:02:10.2]} 24... Kg7 {[%clk 0:00:53.9]}
25. a4 {[%clk 0:02:09.6]} 25... Rdc8 {[%clk 0:00:44.4]} 26. d6 {[%clk
0:02:02.5]} 26... Nd5 {[%clk 0:00:26.3]} 27. Rcxc4 {[%clk 0:01:34.3]} 27... Rxc4
{[%clk 0:00:26.1]} 28. Rxc4 {[%clk 0:01:34.9]} 28... Rxc4 {[%clk 0:00:28]} 29.
d7 {[%clk 0:01:36.1]} 29... Rxa4 {[%clk 0:00:21.2]} 30. Bxd5 {[%clk 0:01:29.5]}
1-0

[Event "*** Titled Tuesday Blitz"]
[Site "Chess.com"]
[Date "2019.04.02"]
[Round "1"]
[White "MITerryble"]
[Black "BasilSmash"]
[Result "1-0"]
[WhiteElo "2841"]
[BlackElo "2460"]
[TimeControl "180+2"]
[EndTime "14:06:44 PDT"]
[Termination "MITerryble won by resignation"]

1. d4 {[%clk 0:03:01.2]} 1... d5 {[%clk 0:03:00]} 2. Nf3 {[%clk 0:03:01.5]} 2...
Nf6 {[%clk 0:03:00.3]} 3. c4 {[%clk 0:03:02.5]} 3... e6 {[%clk 0:03:00.9]} 4. e3
{[%clk 0:03:01.2]} 4... b6 {[%clk 0:02:59.9]} 5. b3 {[%clk 0:02:59.3]} 5... Bb7
{[%clk 0:02:58]} 6. Bd3 {[%clk 0:02:59.8]} 6... Bd6 {[%clk 0:02:57.3]} 7. Bb2
{[%clk 0:03:00.2]} 7... O-O {[%clk 0:02:57.6]} 8. O-O {[%clk 0:03:01.1]} 8...
Nbd7 {[%clk 0:02:58.2]} 9. Ne5 {[%clk 0:03:01.6]} 9... Qe7 {[%clk 0:02:44.3]}
10. a3 {[%clk 0:02:59.9]} 10... c5 {[%clk 0:02:37.6]} 11. Nd2 {[%clk 0:02:53.9]}
11... cxd4 {[%clk 0:02:36.6]} 12. exd4 {[%clk 0:02:54.5]} 12... Rac8 {[%clk
0:02:32.7]} 13. Qe2 {[%clk 0:02:49.2]} 13... Rfd8 {[%clk 0:02:22.7]} 14. Rfe1
{[%clk 0:02:49.2]} 14... Nf8 {[%clk 0:02:17.7]} 15. Ndf3 {[%clk 0:02:03.4]}
15... Ng6 {[%clk 0:02:06.6]} 16. Nxg6 {[%clk 0:02:04]} 16... hxg6 {[%clk
0:02:08.5]} 17. Ne5 {[%clk 0:02:03.7]} 17... dxc4 {[%clk 0:02:00.2]} 18. bxc4
{[%clk 0:02:03.8]} 18... Nd7 {[%clk 0:01:57.4]} 19. Nf3 {[%clk 0:01:54.2]} 19...
Bb8 {[%clk 0:01:52.6]} 20. d5 {[%clk 0:01:54.3]} 20... Qd6 {[%clk 0:01:51.3]}
21. dxe6 {[%clk 0:01:49.3]} 21... Bxf3 {[%clk 0:01:46.5]} 22. exf7+ {[%clk
0:01:43.7]} 22... Kf8 {[%clk 0:01:47]} 23. Qxf3 {[%clk 0:01:35.7]} 23... Qxh2+
{[%clk 0:01:47.4]} 24. Kf1 {[%clk 0:01:36.8]} 24... Nc5 {[%clk 0:01:36.7]} 25.
Re8+ {[%clk 0:01:31.8]} 25... Rxe8 {[%clk 0:01:35.8]} 26. fxe8=Q+ {[%clk
0:01:33]} 26... Kxe8 {[%clk 0:01:35.9]} 27. Bxg6+ {[%clk 0:01:31.9]} 27... Kd8
{[%clk 0:01:25.4]} 28. Rd1+ {[%clk 0:01:19.2]} 28... Nd7 {[%clk 0:01:13.3]} 29.
Qf8+ {[%clk 0:01:04.9]} 29... Kc7 {[%clk 0:01:13.8]} 30. Rxd7+ {[%clk
0:01:06.3]} 30... Kxd7 {[%clk 0:01:15.3]} 31. Bf5+ {[%clk 0:01:07.3]} 31... Kc6
{[%clk 0:01:07.6]} 32. Qxc8+ {[%clk 0:01:07.7]} 32... Bc7 {[%clk 0:01:08.6]} 33.
Qd7+ {[%clk 0:00:52.2]} 1-0

[Event "*** Titled Tuesday Blitz"]
[Site "Chess.com"]
[Date "2019.04.02"]
[Round "1"]
[White "martinjogstad99"]
[Black "Zq1"]
[Result "1-0"]
[WhiteElo "2228"]
[BlackElo "2535"]
[TimeControl "180+2"]
[EndTime "14:06:46 PDT"]
[Termination "martinjogstad99 won by resignation"]

1. d4 {[%clk 0:03:01.8]} 1... Nf6 {[%clk 0:02:58.8]} 2. c4 {[%clk 0:03:02.4]}
2... a6 {[%clk 0:02:59.5]} 3. g3 {[%clk 0:03:01.4]} 3... c5 {[%clk 0:03:00.2]}
4. Nf3 {[%clk 0:03:01.2]} 4... cxd4 {[%clk 0:03:01.1]} 5. Nxd4 {[%clk
0:03:02.3]} 5... d5 {[%clk 0:03:01.9]} 6. Bg2 {[%clk 0:03:01.4]} 6... dxc4
{[%clk 0:02:57.6]} 7. Qa4+ {[%clk 0:02:57.5]} 7... Nbd7 {[%clk 0:02:55.9]} 8.
Qxc4 {[%clk 0:02:56]} 8... e6 {[%clk 0:02:55.4]} 9. O-O {[%clk 0:02:43.9]} 9...
Be7 {[%clk 0:02:55.8]} 10. Rd1 {[%clk 0:02:38.5]} 10... Qb6 {[%clk 0:02:50.1]}
11. Nc3 {[%clk 0:02:28.4]} 11... O-O {[%clk 0:02:48.6]} 12. Be3 {[%clk
0:02:20.7]} 12... Ne5 {[%clk 0:02:44.1]} 13. Qb3 {[%clk 0:01:57.5]} 13... Qxb3
{[%clk 0:02:42.5]} 14. axb3 {[%clk 0:01:59.4]} 14... Neg4 {[%clk 0:02:35]} 15.
Bc1 {[%clk 0:01:46.9]} 15... Rd8 {[%clk 0:02:34.1]} 16. h3 {[%clk 0:01:44.1]}
16... Ne5 {[%clk 0:02:33.9]} 17. Be3 {[%clk 0:01:42.9]} 17... Ned7 {[%clk
0:02:25.5]} 18. Ndb5 {[%clk 0:01:33]} 18... Rb8 {[%clk 0:02:07.1]} 19. Nc7
{[%clk 0:01:16.3]} 19... b6 {[%clk 0:02:03.8]} 20. Nxa6 {[%clk 0:01:13.2]} 20...
Bxa6 {[%clk 0:02:02.6]} 21. Rxa6 {[%clk 0:01:15.1]} 21... Nc5 {[%clk 0:02:02.3]}
22. Rxd8+ {[%clk 0:01:11]} 22... Bxd8 {[%clk 0:02:00.4]} 23. Bxc5 {[%clk
0:01:08.2]} 23... bxc5 {[%clk 0:02:01]} 24. Ra8 {[%clk 0:01:09.9]} 24... Rxa8
{[%clk 0:02:01.4]} 25. Bxa8 {[%clk 0:01:11.8]} 25... Be7 {[%clk 0:02:01.4]} 26.
Bc6 {[%clk 0:01:08.5]} 26... Kf8 {[%clk 0:02:01.7]} 27. e3 {[%clk 0:01:06.1]}
27... Bd6 {[%clk 0:02:02]} 28. Kf1 {[%clk 0:01:06.8]} 28... Ke7 {[%clk
0:02:02.5]} 29. Ke2 {[%clk 0:01:07.6]} 29... h5 {[%clk 0:01:53.4]} 30. Nb5
{[%clk 0:01:07.9]} 30... Be5 {[%clk 0:01:52.3]} 31. Nc3 {[%clk 0:01:02.8]} 31...
Kd6 {[%clk 0:01:52.1]} 32. Bf3 {[%clk 0:01:02.8]} 32... Kc7 {[%clk 0:01:52.3]}
33. Nb5+ {[%clk 0:01:01.5]} 33... Kb6 {[%clk 0:01:52.2]} 34. Nc3 {[%clk
0:01:03.1]} 34... g6 {[%clk 0:01:51.4]} 35. Kd3 {[%clk 0:01:01.5]} 35... Nd7
{[%clk 0:01:46.4]} 36. Be2 {[%clk 0:00:44]} 36... Bd6 {[%clk 0:01:43.7]} 37. f4
{[%clk 0:00:43.9]} 37... Be7 {[%clk 0:01:38.7]} 38. Kc4 {[%clk 0:00:43.1]} 38...
Ka5 {[%clk 0:01:38.1]} 39. Ne4 {[%clk 0:00:40.6]} 39... Nb6+ {[%clk 0:01:35.9]}
40. Kc3 {[%clk 0:00:39]} 40... Bf6+ {[%clk 0:01:35.8]} 41. Nxf6 {[%clk
0:00:36.7]} 1-0

[Event "*** Titled Tuesday Blitz"]
[Site "Chess.com"]
[Date "2019.04.02"]
[Round "1"]
[White "Gahan-MG"]
[Black "Entilza"]
[Result "1-0"]
[WhiteElo "2556"]
[BlackElo "2217"]
[TimeControl "180+2"]
[EndTime "14:06:49 PDT"]
[Termination "Gahan-MG won by resignation"]

1. e4 {[%clk 0:03:01.5]} 1... c6 {[%clk 0:02:59.3]} 2. d4 {[%clk 0:03:01.4]}
2... d5 {[%clk 0:03:00.3]} 3. exd5 {[%clk 0:03:02.2]} 3... cxd5 {[%clk
0:03:02.2]} 4. c4 {[%clk 0:03:00]} 4... Nf6 {[%clk 0:03:02.8]} 5. Nc3 {[%clk
0:03:00.4]} 5... Nc6 {[%clk 0:03:02.9]} 6. Nf3 {[%clk 0:03:01]} 6... Bg4 {[%clk
0:03:00.3]} 7. cxd5 {[%clk 0:02:58.5]} 7... Nxd5 {[%clk 0:03:00]} 8. Qb3 {[%clk
0:02:59.3]} 8... Bxf3 {[%clk 0:03:00.4]} 9. gxf3 {[%clk 0:03:01.2]} 9... e6
{[%clk 0:03:00.5]} 10. Qxb7 {[%clk 0:03:01.3]} 10... Nxd4 {[%clk 0:02:58.9]} 11.
Bb5+ {[%clk 0:03:02.5]} 11... Nxb5 {[%clk 0:02:59]} 12. Qc6+ {[%clk 0:03:03.8]}
12... Ke7 {[%clk 0:02:56.2]} 13. Qxb5 {[%clk 0:03:05]} 13... Nxc3 {[%clk
0:02:55.4]} 14. bxc3 {[%clk 0:03:05.9]} 14... Rb8 {[%clk 0:02:56.4]} 15. Qa4
{[%clk 0:02:53.4]} 15... Qd7 {[%clk 0:02:46.3]} 16. Qf4 {[%clk 0:02:43.7]} 16...
Qd6 {[%clk 0:02:34]} 17. Ba3 {[%clk 0:02:17.8]} 17... Qxa3 {[%clk 0:02:31.2]}
18. Qxb8 {[%clk 0:02:18.8]} 18... Qxc3+ {[%clk 0:02:29.6]} 19. Ke2 {[%clk
0:02:18.6]} 19... Qc2+ {[%clk 0:02:25.8]} 20. Kf1 {[%clk 0:02:14.5]} 20... Qd3+
{[%clk 0:02:17.5]} 21. Kg2 {[%clk 0:02:15.5]} 21... Qg6+ {[%clk 0:02:17.3]} 22.
Qg3 {[%clk 0:02:16.4]} 22... Qxg3+ {[%clk 0:02:17.1]} 23. fxg3 {[%clk
0:02:17.2]} 23... Kf6 {[%clk 0:02:02.1]} 24. Rhd1 {[%clk 0:02:13.4]} 24... Bc5
{[%clk 0:02:01.4]} 25. Rd7 {[%clk 0:02:13]} 25... Rb8 {[%clk 0:02:00.8]} 26.
Rad1 {[%clk 0:02:07.1]} 26... Rb2+ {[%clk 0:01:57]} 27. R1d2 {[%clk 0:02:07.8]}
27... Rb1 {[%clk 0:01:57.1]} 28. f4 {[%clk 0:02:07.9]} 28... h5 {[%clk
0:01:54.6]} 29. Rc7 {[%clk 0:02:04.6]} 29... Bb6 {[%clk 0:01:53.9]} 30. Rb7
{[%clk 0:02:05.6]} 30... Rg1+ {[%clk 0:01:49.7]} 31. Kf3 {[%clk 0:02:05.7]}
31... Rh1 {[%clk 0:01:46.5]} 32. Rdd7 {[%clk 0:02:03.8]} 32... Rxh2 {[%clk
0:01:44.6]} 33. Rxf7+ {[%clk 0:02:03.3]} 33... Kg6 {[%clk 0:01:44.8]} 34. Rxg7+
{[%clk 0:02:04.6]} 34... Kh6 {[%clk 0:01:45.2]} 35. Rge7 {[%clk 0:02:01.1]}
35... Rf2+ {[%clk 0:01:41.9]} 36. Ke4 {[%clk 0:02:02.1]} 36... Re2+ {[%clk
0:01:42.3]} 37. Kd3 {[%clk 0:02:03.2]} 37... Re3+ {[%clk 0:01:41.8]} 38. Kc4
{[%clk 0:02:04.3]} 38... Kg6 {[%clk 0:01:40.7]} 39. a4 {[%clk 0:01:54]} 39...
Kf5 {[%clk 0:01:38]} 40. Rg7 {[%clk 0:01:47.9]} 40... Re4+ {[%clk 0:01:33.9]}
41. Kb5 {[%clk 0:01:48.5]} 41... Re1 {[%clk 0:01:25.8]} 42. Rg5+ {[%clk
0:01:49]} 42... Kf6 {[%clk 0:01:23.7]} 43. Rxh5 {[%clk 0:01:42.9]} 43... Rb1+
{[%clk 0:01:23.1]} 44. Ka6 {[%clk 0:01:44]} 44... Ra1 {[%clk 0:01:20.9]} 45. a5
{[%clk 0:01:42]} 45... Bf2 {[%clk 0:01:21.7]} 46. g4 {[%clk 0:01:34.8]} 1-0

[Event "*** Titled Tuesday Blitz"]
[Site "Chess.com"]
[Date "2019.04.02"]
[Round "1"]
[White "sergiochess83"]
[Black "Eltarolo"]
[Result "1-0"]
[WhiteElo "2730"]
[BlackElo "2393"]
[TimeControl "180+2"]
[EndTime "14:07:02 PDT"]
[Termination "sergiochess83 won on time"]

1. e4 {[%clk 0:03:01.5]} 1... c5 {[%clk 0:02:59.9]} 2. Nf3 {[%clk 0:03:01.9]}
2... d6 {[%clk 0:03:01.3]} 3. d4 {[%clk 0:03:02.2]} 3... cxd4 {[%clk 0:03:03.2]}
4. Nxd4 {[%clk 0:03:03.8]} 4... Nf6 {[%clk 0:03:04.7]} 5. Nc3 {[%clk 0:03:05.1]}
5... g6 {[%clk 0:03:05.9]} 6. Be3 {[%clk 0:03:03.8]} 6... Bg7 {[%clk 0:03:06.7]}
7. f3 {[%clk 0:03:04.8]} 7... O-O {[%clk 0:03:07.4]} 8. Qd2 {[%clk 0:03:06.1]}
8... Nc6 {[%clk 0:03:08]} 9. O-O-O {[%clk 0:03:07.2]} 9... d5 {[%clk 0:03:09.2]}
10. Qe1 {[%clk 0:03:07.3]} 10... e5 {[%clk 0:03:07.9]} 11. Nxc6 {[%clk 0:03:04]}
11... bxc6 {[%clk 0:03:09]} 12. exd5 {[%clk 0:03:04]} 12... Nxd5 {[%clk
0:03:08.7]} 13. Bc4 {[%clk 0:02:57.7]} 13... Be6 {[%clk 0:03:08.9]} 14. Ne4
{[%clk 0:02:54.2]} 14... Qc7 {[%clk 0:02:59.8]} 15. Nc5 {[%clk 0:02:49.7]} 15...
Nxe3 {[%clk 0:02:21.3]} 16. Nxe6 {[%clk 0:02:47.9]} 16... Qb6 {[%clk 0:02:20.7]}
17. Nxf8 {[%clk 0:02:41.3]} 17... Nxc4 {[%clk 0:01:17.2]} 18. Qc3 {[%clk
0:02:39.6]} 18... e4 {[%clk 0:00:59]} 19. Qxc4 {[%clk 0:02:28.3]} 19... Bxb2+
{[%clk 0:00:38.8]} 20. Kb1 {[%clk 0:02:27.9]} 20... Bg7+ {[%clk 0:00:15.2]} 21.
Qb3 {[%clk 0:02:28.8]} 21... Qc7 {[%clk 0:00:10.4]} 22. Nd7 {[%clk 0:02:28.3]}
22... a5 {[%clk 0:00:11.5]} 23. a4 {[%clk 0:02:19.8]} 23... c5 {[%clk
0:00:06.6]} 24. Ka2 {[%clk 0:02:13.1]} 24... c4 {[%clk 0:00:07.5]} 25. Qb6
{[%clk 0:02:12.1]} 25... Qf4 {[%clk 0:00:06.9]} 26. Qc6 {[%clk 0:02:07]} 26...
Re8 {[%clk 0:00:03]} 27. Nf6+ {[%clk 0:02:00.1]} 27... Bxf6 {[%clk 0:00:04.1]}
28. Qxe8+ {[%clk 0:02:01.1]} 28... Kg7 {[%clk 0:00:05.7]} 29. Qxe4 {[%clk
0:01:58.3]} 29... Qc7 {[%clk 0:00:05.7]} 30. Rb1 {[%clk 0:01:57]} 30... Qd7
{[%clk 0:00:05.7]} 31. Rb5 {[%clk 0:01:57.4]} 31... Qd2 {[%clk 0:00:04.7]} 32.
Qxc4 {[%clk 0:01:52.9]} 32... Qxg2 {[%clk 0:00:05.6]} 33. Rd1 {[%clk 0:01:51.8]}
33... Qxf3 {[%clk 0:00:06.6]} 34. Rf1 {[%clk 0:01:51.1]} 34... Qg2 {[%clk
0:00:07.2]} 35. Rb6 {[%clk 0:01:44.7]} 35... Qg5 {[%clk 0:00:02.2]} 36. Rbxf6
{[%clk 0:01:43]} 1-0